{"text_format":"1","workbook":"xlsx","n_sheets":9,"sheets":["Menu","Transmitente - Submiter Type","Informação Relevante","Produtos - Product's","Base de Informações","Extrato-Resumo Cig. Elet","Resumo do Ficheiro","Notificação de Taxas","Taxas"],"not_rendered":{"charts":0,"images":8,"macros":1,"external_links":0,"defined_names":3,"comments":0,"pivot_tables":0},"unopened":[],"bounds":{"document_bytes":16777216,"sheet_cells":100000,"rows_first":2000,"rows_last":500,"rows_between":2000,"halvings":0,"cell_chars":16384,"cell_head_chars":4096},"cells_cut":0,"cells_raw":0,"read":"whole","date_system":"1900"}

{"sheet":"Menu","index":0,"n_rows":19,"n_cols":4,"rows_kept":19,"cut":false,"hidden":false,"merged":[[11,3,11,11],[10,3,10,11]]}
[]
[]
[]
[]
[]
[]
[]
[]
[]
[null,null,null,"Portaria Nº 148-A/2016, de 23 de maio (artº 7º, com as alterações da Portaria Nº 278/2016, de 24 de outubro)"]
[null,null,null,"Informação para pagamento de taxas relativas à notificação de ingredientes, emissões e volume de vendas de cigarros eletrónicos"]
[null,null,null,"(Artigo 7º)"]
[]
[]
[null,null,null,"Transmitente"]
[null,null,null,"Informação relevante para cálculo de Taxas"]
[null,null,null,"Comunicação de produtos"]
[null,null,null,"Extrato dos produtos de cigarros eletrónicos introduzidos neste ficheiro"]
[null,null,null,"Notificação relativa ao pagamento das taxas"]

{"sheet":"Transmitente - Submiter Type","index":1,"n_rows":66,"n_cols":4,"rows_kept":66,"cut":false,"hidden":false,"merged":[[5,0,5,3],[8,1,8,3],[7,1,7,3],[12,1,12,3],[13,1,13,3],[13,4,13,10],[27,1,27,3],[27,4,27,10],[17,3,17,4],[19,3,19,10],[21,4,21,6],[23,4,23,7],[31,1,31,3],[31,4,31,10],[35,1,35,3],[35,4,35,10],[39,1,39,3],[39,4,39,10],[43,1,43,3],[43,4,43,10],[47,1,47,3],[47,4,47,10],[51,1,51,3],[51,4,51,10],[63,1,63,3],[63,4,63,10],[55,1,55,3],[55,4,55,10],[59,1,59,3],[59,4,59,10]]}
[]
[]
[]
[]
[]
["Entidade Transmitente (Submiter type):"]
[]
[null,"Fabricante (Manufacturer):"]
[null,"Entidade (Entity):"]
[]
[null,null,null,"ID do transmitente (Submiter ID) EU_CEG:"]
[]
[null,"Importador (Importer):"]
[null,"Entidade (Entity):"]
[]
[null,null,null,"ID do transmitente (Submiter ID) EU_CEG:"]
[]
[null,"NIF / VAT Number"]
[]
[null,"Morada / Address"]
[]
[null,"Telefone / Phone number"]
[]
[null,"E-mail"]
[]
[null,"Fabricantes / Fornecedores dos produtos importados:"]
[null,"(Manufacturers / Suppliers of imported products):"]
[null,"Entidade (Entity):"]
[]
[null,null,null,"ID do transmitente (Submiter ID) EU_CEG:"]
[]
[null,"Entidade (Entity):"]
[]
[null,null,null,"ID do transmitente (Submiter ID) EU_CEG:"]
[]
[null,"Entidade (Entity):"]
[]
[null,null,null,"ID do transmitente (Submiter ID) EU_CEG:"]
[]
[null,"Entidade (Entity):"]
[]
[null,null,null,"ID do transmitente (Submiter ID) EU_CEG:"]
[]
[null,"Entidade (Entity):"]
[]
[null,null,null,"ID do transmitente (Submiter ID) EU_CEG:"]
[]
[null,"Entidade (Entity):"]
[]
[null,null,null,"ID do transmitente (Submiter ID) EU_CEG:"]
[]
[null,"Entidade (Entity):"]
[]
[null,null,null,"ID do transmitente (Submiter ID) EU_CEG:"]
[]
[null,"Entidade (Entity):"]
[]
[null,null,null,"ID do transmitente (Submiter ID) EU_CEG:"]
[]
[null,"Entidade (Entity):"]
[]
[null,null,null,"ID do transmitente (Submiter ID) EU_CEG:"]
[]
[null,"Entidade (Entity):"]
[]
[null,null,null,"ID do transmitente (Submiter ID) EU_CEG:"]

{"sheet":"Informação Relevante","index":2,"n_rows":13,"n_cols":16,"rows_kept":13,"cut":false,"hidden":false,"merged":[[2,1,2,18],[3,1,3,13],[4,1,4,13],[6,3,6,6],[14,5,14,8],[12,1,12,8],[11,11,12,11],[11,12,12,12],[11,13,12,13],[11,1,11,8],[8,1,8,5],[8,6,8,7]]}
[]
[]
[]
[null,"Informação de cigarros eletrónicos para pagamento de taxas"]
[null,"(artº 7º da Portaria Nº 148-A/2016, de 23 de maio, com as alterações da Portaria Nº 278/2016, de 24 de outubro)"]
[]
[null,null,null,"Menu Inicial / Initial menu",null,null,null,null,null,null,null,"Não fabrica/ não importa","menos de 10 unidades objeto de notificação","10 ou mais unidades objeto de notificação"]
[]
[null,"Data da comunicação da informação",null,null,null,null,null,null,null,null,null,"does not manufacture / does not import","less than 10 units notification object","10 or more units notification object"]
[]
[]
[null,"Cigarros eletrónicos e recargas - nº 2 do artº 7º da Portaria nº 148-A/2016, com as alterações introduzidas pela Portaria Nº 278/2016, de 24 de outubro",null,null,null,null,null,null,null,null,3,null,null,null,null,{"$f":"IF($K$12=3,1019.88,0)+IF($K$12=2,509.94,0)+IF($K$12=1,0,0)","v":1019.88}]
[null,"Electronic cigarettes and refills - paragraph 2 of article 7 of Ordinance No. 148-A / 2016, as amended by Ordinance No. 278/2016 of 24 October"]

{"sheet":"Produtos - Product's","index":3,"n_rows":24,"n_cols":52,"rows_kept":24,"cut":false,"hidden":false,"merged":[[3,1,3,9],[4,1,4,8],[10,4,10,7],[8,4,8,7]]}
[]
[null,null,null,null,null,null,null,null,null,null,null,null,null,null,null,null,null,null,null,null,null,null,null,null,null,null,null,null,null,null,null,null,null,null,null,null,null,null,null,null,null,null,null,null,null,null,null,null,null,null,null,"a) Cigarros - cigarettes"]
[null,null,null,null,null,null,null,null,null,null,null,null,null,null,null,null,null,null,null,null,null,null,null,null,null,null,null,null,null,null,null,null,null,null,null,null,null,null,null,null,null,null,null,null,null,null,null,null,null,null,null,"b) Tabaco de corte fino - fine-cut tobacco"]
[null,"Informação de cigarros eletrónicos para pagamento de taxas",null,null,null,null,null,null,null,null,null,null,null,null,null,null,null,null,null,null,null,null,null,null,null,null,null,null,null,null,null,null,null,null,null,null,null,null,null,null,null,null,null,null,null,null,null,null,null,null,null,"c) Cigarrilhas - cigarillos"]
[null,"(artº 7º da Portaria Nº 148-A/2016, de 23 de maio, com as alterações da Portaria Nº 278/2016, de 24 de outubro)",null,null,null,null,null,null,null,null,null,null,null,null,null,null,null,null,null,null,null,null,null,null,null,null,null,null,null,null,null,null,null,null,null,null,null,null,null,null,null,null,null,null,null,null,null,null,null,null,null,"d) Charutos - cigars"]
[null,null,null,null,null,null,null,null,null,null,null,null,null,null,null,null,null,null,null,null,null,null,null,null,null,null,null,null,null,null,null,null,null,null,null,null,null,null,null,null,null,null,null,null,null,null,null,null,null,null,null,"e) Tabaco para cachimbo - pipe tobacco"]
[null,null,null,null,null,null,null,null,null,null,null,null,null,null,null,null,null,null,null,null,null,null,null,null,null,null,null,null,null,null,null,null,null,null,null,null,null,null,null,null,null,null,null,null,null,null,null,null,null,null,null,"f) Tabaco para cachimbo de água - waterpipe tobacco"]
[null,null,null,null,null,null,null,null,null,null,null,null,null,null,null,null,null,null,null,null,null,null,null,null,null,null,null,null,null,null,null,null,null,null,null,null,null,null,null,null,null,null,null,null,null,null,null,null,null,null,null,"g) Outros produtos do tabaco - other tobacco products"]
[null,null,"Nome do Produto / Product's name",null,null,null,null,null,null,null,null,null,null,null,null,null,null,null,null,null,null,null,null,null,null,null,null,null,null,null,null,null,null,null,null,null,null,null,null,null,null,null,null,null,null,null,null,null,null,null,null,"Cigarros eletrónicos e recargas (nova redação do nº 2 do artº 7º) - Electronic cigarettes and refills"]
[]
[null,null,"ID produto (se disponível) / Product ID (if available)"]
[]
[null,null,"Tipo de produto / Product type",null,"Cigarros eletrónicos e recargas (nova redação do nº 2 do artº 7º) - Electronic cigarettes and refills"]
[]
[]
[]
[]
[]
[]
[]
[]
[]
[null,null,null,null,null,null,null,null,null,null,null,null,null,null,null,null,null,null,null,null,null,null,null,null,null,null,null,null,null,null,null,null,null,null,null,null,null,null,null,null,null,null,null,null,null,null,null,null,null,null,null,"1ª Notificação / 1st Submission"]
[null,null,null,null,null,null,null,null,null,null,null,null,null,null,null,null,null,null,null,null,null,null,null,null,null,null,null,null,null,null,null,null,null,null,null,null,null,null,null,null,null,null,null,null,null,null,null,null,null,null,null,"Atualização / Update of Information"]

{"sheet":"Base de Informações","index":4,"n_rows":1,"n_cols":3,"rows_kept":1,"cut":false,"hidden":true,"merged":[]}
["Nome do Produto","ID produto","Tipo de Produto"]

{"sheet":"Extrato-Resumo Cig. Elet","index":5,"n_rows":9,"n_cols":5,"rows_kept":9,"cut":false,"hidden":false,"merged":[[5,1,5,3],[4,1,4,3],[1,4,1,6]]}
[]
[null,null,null,null,"Menu Inicial / Initial menu"]
[]
[]
[]
[null,"Lista de produtos de cigarros eletrónicos notificados/ Electronic cigarettes list of notified products"]
[]
[]
[null,"Nome do Produto / Product's name","ID produto / Product ID","Tipo de Produto / Product's type"]

{"sheet":"Resumo do Ficheiro","index":6,"n_rows":39,"n_cols":4,"rows_kept":39,"cut":false,"hidden":true,"merged":[[2,1,2,9],[3,3,4,5],[5,3,5,9],[6,3,6,4],[7,3,7,9],[8,3,8,4],[25,1,26,1],[28,1,29,1],[19,1,20,1],[22,1,23,1],[9,3,9,7],[11,1,11,10],[13,1,14,1],[16,1,17,1],[31,1,32,1],[34,1,35,1],[32,3,32,10],[34,3,34,10],[35,3,35,10],[37,3,37,10],[38,3,38,10],[37,1,38,1],[13,3,13,10],[14,3,14,10],[16,3,16,10],[17,3,17,10],[19,3,19,10],[20,3,20,10],[22,3,22,10],[23,3,23,10],[25,3,25,10],[26,3,26,10],[28,3,28,10],[29,3,29,10],[31,3,31,10]]}
[]
[]
[null,{"$f":"UPPER(\"Identificação da Entidade Transmitente/ Identification of the submitter \")","v":"IDENTIFICAÇÃO DA ENTIDADE TRANSMITENTE/ IDENTIFICATION OF THE SUBMITTER "}]
[null,"ID do Transmitente EU-CEG:",null,{"$f":"'Transmitente - Submiter Type'!J11","v":0}]
[null,"Submitter ID EU-CEG:"]
[null,"Entidade / Entity:",null,{"$f":"'Transmitente - Submiter Type'!E9","v":0}]
[null,"NIF / VAT Number:",null,{"$f":"'Transmitente - Submiter Type'!D18:E18","v":0}]
[null,"Morada / Address:",null,{"$f":"'Transmitente - Submiter Type'!D20:K20","v":0}]
[null,"Telefone / Phone number:",null,{"$f":"'Transmitente - Submiter Type'!E22","v":0}]
[null,"E-mail:",null,{"$f":"'Transmitente - Submiter Type'!E24","v":0}]
[]
[null,{"$f":"UPPER(\"Total de registos / Total number of records\")","v":"TOTAL DE REGISTOS / TOTAL NUMBER OF RECORDS"}]
[]
[null,{"$f":"COUNTA('Base de Informações'!$A:$A)-1","v":0},null,"Registos de Informação de produtos do tabaco e de cigarros eletrónicos para pagamento de taxas nos termos do disposto no artº 7º da Portaria Nº 148-A/2016, de 23/05/2016, com as alterações introduzidas pela Portaria Nº 278/2016, de 24 de outubro"]
[null,null,null,"Information records of tobacco products and electronic cigarettes to pay fees in accordance with the provisions of article 7 of Ordinance No. 148-A / 2016 of 05/23/2016, as amended by Decree No. 278/2016 of October 24th"]
[]
[null,{"$f":"COUNTIFS('Base de Informações'!$C:$C,'Produtos - Product''s'!$AZ$2)","v":0},null,"Cigarros - alínea a) do nº 1 do artº 7º da Portaria Nº 148-A/2016, de 23 de maio com a redação da Portaria nº 278/2016, de 24 de outubro"]
[null,null,null,"cigarettes - a) of paragraph 1 of Article 7 - Writing Ordinance No. 278/2016, of 24 October"]
[]
[null,{"$f":"COUNTIFS('Base de Informações'!$C:$C,'Produtos - Product''s'!$AZ$3)","v":0},null,"Tabaco de corte fino - alínea b) do nº 1 do artº 7º - Redação da Portaria nº 278/2016, de 24 de outubro"]
[null,null,null,"fine-cut tobacco - b) of paragraph 1 of Article 7 - Writing Ordinance No. 278/2016, of 24 October"]
[]
[null,{"$f":"COUNTIFS('Base de Informações'!$C:$C,'Produtos - Product''s'!$AZ$4)","v":0},null,"Cigarrilhas - alínea c) do nº 1 do artº 7º - Redação da Portaria nº 278/2016, de 24 de outubro"]
[null,null,null,"cigarillos - c) of paragraph 1 of Article 7 - Writing Ordinance No. 278/2016, of 24 October"]
[]
[null,{"$f":"COUNTIFS('Base de Informações'!$C:$C,'Produtos - Product''s'!$AZ$5)","v":0},null,"Charutos - alínea d) do nº 1 do artº 7º - Redação da Portaria nº 278/2016, de 24 de outubro"]
[null,null,null,"cigars - d) of paragraph 1 of Article 7 - Writing Ordinance No. 278/2016, of 24 October"]
[]
[null,{"$f":"COUNTIFS('Base de Informações'!$C:$C,'Produtos - Product''s'!$AZ$6)","v":0},null,"Tabaco para cachimbo - alínea e) do nº 1 do artº 7º - Redação da Portaria nº 278/2016, de 24 de outubro"]
[null,null,null,"pipe tobacco - e) of paragraph 1 of Article 7 - Writing Ordinance No. 278/2016, of 24 October"]
[]
[null,{"$f":"COUNTIFS('Base de Informações'!$C:$C,'Produtos - Product''s'!$AZ$7)","v":0},null,"Tabaco para cachimbo de água - alínea f) do nº 1 do artº 7º - Redação da Portaria nº 278/2016, de 24 de outubro"]
[null,null,null,"waterpipe tobacco - f) of paragraph 1 of Article 7 - Writing Ordinance No. 278/2016, of 24 October"]
[]
[null,{"$f":"COUNTIFS('Base de Informações'!$C:$C,'Produtos - Product''s'!$AZ$8)","v":0},null,"Outros produtos de tabaco - alínea g) do nº 1 do artº 7º - Redação da Portaria nº 278/2016, de 24 de outubro"]
[null,null,null,"other tobacco products - g) of paragraph 1 of Article 7 - Writing Ordinance No. 278/2016, of 24 October"]
[]
[null,{"$f":"COUNTIFS('Base de Informações'!$C:$C,'Produtos - Product''s'!$AZ$9)","v":0},null,"Cigarros eletrónicos e recargas - nº 2 do artº 7º da Portaria nº 148-A/2016, com as alterações introduzidas pela Portaria Nº 278/2016, de 24 de outubro"]
[null,null,null,"Electronic cigarettes and refills - paragraph 2 of article 7 of Ordinance No. 148-A / 2016, as amended by Ordinance No. 278/2016 of 24 October"]

{"sheet":"Notificação de Taxas","index":7,"n_rows":20,"n_cols":2,"rows_kept":20,"cut":false,"hidden":false,"merged":[]}
[]
[]
[null," Informação relativa ao pagamento de Taxas"]
[null,"Exmos. Senhores"]
[null,"Informamos Vs. Exas.  de  que irão receber uma Fatura para pagamento do montante correspondente às notificações que constam da presente declaração de informação."]
[null,"O prazo de pagamento é de 10 dias úteis após a receção dessa fatura."]
[null,"Após o pagamento, é obrigatório o envio de uma cópia do respetivo comprovativo de pagamento, no prazo máximo de 10 dias úteis, acompanhada do Relatório das notificações efetuadas na presente declaração, para o seguinte endereço eletrónico:"]
[null,"rutesilvestre@dgs.min-saude.pt"]
[null,"Declara-se que tomámos conhecimento da presente informação"]
[null,{"$f":"TODAY()","v":"2018-02-12"}]
[]
[]
[null,"Information about the payment of fees"]
[null,"Dear Madam/Sir"]
[null,"We would like to inform that you will receive an invoice for payment of the amount corresponding to the notifications provided in this information document."]
[null,"The payment period is 10 working days after receipt of such invoice."]
[null,"After payment, it is required to send a copy of the respective proof of payment, in the next 10 working days, together with the Report list of the notified products in this declaration, to the follwing e-mail address:"]
[null,"rutesilvestre@dgs.min-saude.pt"]
[null,"We declare that we took note of this information"]
[null,{"$f":"TODAY()","v":"2018-02-12"}]

{"sheet":"Taxas","index":8,"n_rows":27,"n_cols":6,"rows_kept":27,"cut":false,"hidden":true,"merged":[[22,2,22,3],[16,2,16,3],[17,2,17,3],[18,2,18,3],[19,2,19,3],[20,2,20,3],[21,2,21,3],[13,1,13,3],[11,1,11,5],[4,0,4,5],[15,2,15,3],[7,1,8,3],[10,1,10,2],[12,1,12,2]]}
[]
[]
[]
[]
["DADOS PARA EMISSÃO DE FATURA"]
[]
[]
["ID do Transmitente EU-CEG:",{"$f":"'Transmitente - Submiter Type'!J11","v":0}]
["Submitter ID EU-CEG:"]
["Entidade / Entity:",{"$f":"'Transmitente - Submiter Type'!E9","v":0}]
["NIF / VAT Number:",{"$f":"'Transmitente - Submiter Type'!D18","v":0}]
["Morada / Address:",{"$f":"'Transmitente - Submiter Type'!D20","v":0}]
["Telefone / Phone number:",{"$f":"'Transmitente - Submiter Type'!E22","v":0}]
["E-mail:",{"$f":"'Transmitente - Submiter Type'!E24","v":0}]
[]
[null,null,"a) cigarros",null,0]
[null,null,"b) Tabaco de corte fino",null,0]
[null,null,"c) Cigarrilhas",null,0]
[null,null,"d) Charutos",null,0]
[null,null,"e) Tabaco para cachimbo",null,0]
[null,null,"f) Tabaco para cachimbo de água",null,0]
[null,null,"g) Outros produtos do tabaco",null,0]
[null,null,"Cigarros eletrónicos e recargas",null,{"$f":"'Informação Relevante'!P12","v":1019.88}]
[]
[null,null,null,"Total a faturar",{"$f":"SUM(E16:E24)","v":1019.88},"a)"]
[]
["a) valores calculados nos termos da Portaria nº 278/2016, de 24 de outubro"]